[Event "FIDE World Rapid Chess Championship 2021"]
[White "Salem, A.R. Saleh"]
[Black "Tari, Aryan"]
[WhiteFideId "9301348"]
[BlackFideId "1510045"]
[WhiteElo "2729"]
[BlackElo "2542"]
[Result "1-0"]
[Round "03"]
[TimeControl "900+10"]
[Date "2021.12.26"]
[WhiteClock "0:04:32"]
[BlackClock "0:01:09"]

1. d4 {[%clk 0:15:00]}  d5 {[%clk 0:15:37]} 2. c4 {[%clk 0:15:35]}  e6 {[%clk 0:15:37]} 3. Nc3 {[%clk 0:15:35]}  c5 {[%clk 0:15:37]} 4. cxd5 {[%clk 0:15:35]}  cxd4 {[%clk 0:15:37]} 5. Qa4+ {[%clk 0:15:35]}  Bd7 {[%clk 0:15:37]} 6. Qxd4 {[%clk 0:15:35]}  exd5 {[%clk 0:15:37]} 7. Qxd5 {[%clk 0:15:35]}  Nf6 {[%clk 0:15:37]} 8. Qd1 {[%clk 0:16:28]}  Bc5 {[%clk 0:16:49]} 9. Nf3 {[%clk 0:16:28]}  O-O {[%clk 0:16:49]} 10. e3 {[%clk 0:16:28]}  Qe7 {[%clk 0:16:49]} 11. Be2 {[%clk 0:16:28]}  Nc6 {[%clk 0:16:49]} 12. O-O {[%clk 0:16:28]}  Ne5 {[%clk 0:16:49]} 13. Bd2 {[%clk 0:16:28]}  Rad8 {[%clk 0:16:49]} 14. Nd4 {[%clk 0:13:39]}  Nc6 {[%clk 0:16:00]} 15. Nf3 {[%clk 0:13:19]}  Ne5 {[%clk 0:15:26]} 16. Qc2 {[%clk 0:12:24]}  b5 {[%clk 0:14:40]} 17. a3 {[%clk 0:09:29]}  Bd6 {[%clk 0:08:27]} 18. Nd4 {[%clk 0:08:43]}  a6 {[%clk 0:06:55]} 19. Nf5 {[%clk 0:07:06]}  Bxf5 {[%clk 0:06:10]} 20. Qxf5 {[%clk 0:07:06]}  Bxa3 {[%clk 0:06:19]} 21. Bc1 {[%clk 0:05:40]}  Bd6 {[%clk 0:06:05]} 22. Rxa6 {[%clk 0:05:33]}  b4 {[%clk 0:06:05]} 23. Nb5 {[%clk 0:05:33]}  Bb8 {[%clk 0:06:05]} 24. Nd4 {[%clk 0:05:33]}  Rd5 {[%clk 0:02:31]} 25. Qh3 {[%clk 0:05:42]}  Ne4 {[%clk 0:02:01]} 26. f4 {[%clk 0:05:50]}  Nd7 {[%clk 0:02:01]} 27. Nf5 {[%clk 0:04:52]}  Qc5 {[%clk 0:01:26]} 28. Rc6 {[%clk 0:04:52]}  Qa5 {[%clk 0:01:09]} 29. Ne7+ {[%clk 0:04:32]}  Kh8 {[%clk 0:01:09]} 30. Ra6 {[%clk 0:04:32]}  Qc5 {[%clk 0:01:09]} 31. Nxd5 {[%clk 0:04:32]}  Qxd5 {[%clk 0:01:09]} 32. Rd1 {[%clk 0:04:32]} 1-0


[Site "http://www.Chess.com"]

[Event "FIDE World Rapid Chess Championship 2021"]
[White "Fedoseev, Vladimir"]
[Black "Donchenko, Alexander"]
[WhiteFideId "24130737"]
[BlackFideId "24603295"]
[WhiteElo "2692"]
[BlackElo "2535"]
[Result "1-0"]
[Round "03"]
[TimeControl "900+10"]
[Date "2021.12.26"]
[WhiteClock "0:03:52"]
[BlackClock "0:00:45"]

1. d4 {[%clk 0:15:00]}  Nf6 {[%clk 0:15:00]} 2. c4 {[%clk 0:15:35]}  e6 {[%clk 0:15:27]} 3. Nf3 {[%clk 0:15:35]}  d5 {[%clk 0:15:27]} 4. g3 {[%clk 0:15:35]}  Bb4+ {[%clk 0:15:27]} 5. Bd2 {[%clk 0:15:35]}  Bd6 {[%clk 0:15:46]} 6. Bg2 {[%clk 0:15:54]}  O-O {[%clk 0:15:46]} 7. Bc3 {[%clk 0:15:54]}  b6 {[%clk 0:15:46]} 8. Nbd2 {[%clk 0:15:54]}  Bb7 {[%clk 0:15:13]} 9. Ne5 {[%clk 0:14:03]}  Qc8 {[%clk 0:15:13]} 10. O-O {[%clk 0:13:00]}  dxc4 {[%clk 0:13:14]} 11. Nexc4 {[%clk 0:13:00]}  Bxg2 {[%clk 0:13:14]} 12. Kxg2 {[%clk 0:13:00]}  Qb7+ {[%clk 0:13:14]} 13. f3 {[%clk 0:13:00]}  b5 {[%clk 0:12:40]} 14. Na5 {[%clk 0:12:56]}  Qa6 {[%clk 0:11:50]} 15. Ndb3 {[%clk 0:12:56]}  Re8 {[%clk 0:11:26]} 16. e4 {[%clk 0:12:10]}  b4 {[%clk 0:11:26]} 17. Be1 {[%clk 0:12:10]}  e5 {[%clk 0:07:44]} 18. d5 {[%clk 0:12:04]}  Nbd7 {[%clk 0:07:44]} 19. Qc2 {[%clk 0:11:26]}  Nc5 {[%clk 0:07:44]} 20. Bf2 {[%clk 0:11:13]}  Nfd7 {[%clk 0:04:39]} 21. Rfd1 {[%clk 0:11:01]}  Rf8 {[%clk 0:04:12]} 22. Nc6 {[%clk 0:11:01]}  Qb5 {[%clk 0:04:12]} 23. Nxc5 {[%clk 0:10:06]}  Nxc5 {[%clk 0:04:05]} 24. Bxc5 {[%clk 0:10:06]}  Bxc5 {[%clk 0:04:05]} 25. Nxe5 {[%clk 0:10:06]}  f5 {[%clk 0:04:11]} 26. Rac1 {[%clk 0:09:26]}  Be3 {[%clk 0:03:56]} 27. Rb1 {[%clk 0:08:23]}  fxe4 {[%clk 0:02:55]} 28. Qxe4 {[%clk 0:08:09]}  Bb6 {[%clk 0:02:55]} 29. Qc4 {[%clk 0:08:18]}  Qe8 {[%clk 0:01:37]} 30. Re1 {[%clk 0:08:18]}  Kh8 {[%clk 0:01:43]} 31. Qxb4 {[%clk 0:07:30]}  Rd8 {[%clk 0:01:43]} 32. Rbd1 {[%clk 0:07:30]}  Qh5 {[%clk 0:01:43]} 33. Qg4 {[%clk 0:07:30]}  Qh6 {[%clk 0:01:37]} 34. f4 {[%clk 0:06:36]}  Rf6 {[%clk 0:01:22]} 35. h4 {[%clk 0:04:52]}  Kg8 {[%clk 0:01:22]} 36. Qf3 {[%clk 0:04:53]}  Rfd6 {[%clk 0:00:26]} 37. Nc4 {[%clk 0:04:53]}  R6d7 {[%clk 0:00:26]} 38. Re6 {[%clk 0:04:53]}  g6 {[%clk 0:00:26]} 39. Qe4 {[%clk 0:04:53]}  Qf8 {[%clk 0:00:36]} 40. Ne5 {[%clk 0:03:52]}  Rd6 {[%clk 0:00:36]} 41. Nc6 {[%clk 0:03:52]}  Ra8 {[%clk 0:00:36]} 42. Ne7+ {[%clk 0:03:52]}  Kh8 {[%clk 0:00:36]} 43. f5 {[%clk 0:03:52]}  Rxe6 {[%clk 0:00:45]} 44. dxe6 {[%clk 0:03:52]}  Re8 {[%clk 0:00:45]} 45. Qe5+ {[%clk 0:03:52]}  Qg7 {[%clk 0:00:45]} 46. f6 {[%clk 0:03:52]} 1-0


[Site "http://www.Chess.com"]

[Event "FIDE World Rapid Chess Championship 2021"]
[White "Saric, Ivan"]
[Black "Mastrovasilis, Dimitrios"]
[WhiteFideId "14508150"]
[BlackFideId "4202694"]
[WhiteElo "2684"]
[BlackElo "2534"]
[Result "1/2-1/2"]
[Round "03"]
[TimeControl "900+10"]
[Date "2021.12.26"]
[WhiteClock "0:00:00"]
[BlackClock "0:00:32"]

1. e4 {[%clk 0:15:00]}  e5 {[%clk 0:15:25]} 2. Nf3 {[%clk 0:15:28]}  Nc6 {[%clk 0:15:25]} 3. Bb5 {[%clk 0:15:28]}  Nf6 {[%clk 0:15:25]} 4. d3 {[%clk 0:15:28]}  Bc5 {[%clk 0:15:25]} 5. c3 {[%clk 0:15:28]}  O-O {[%clk 0:15:25]} 6. O-O {[%clk 0:15:43]}  Re8 {[%clk 0:15:42]} 7. Bg5 {[%clk 0:15:43]}  a6 {[%clk 0:15:42]} 8. Ba4 {[%clk 0:15:43]}  h6 {[%clk 0:15:42]} 9. Bh4 {[%clk 0:15:43]}  Be7 {[%clk 0:14:26]} 10. Bg3 {[%clk 0:12:53]}  d6 {[%clk 0:13:16]} 11. Nbd2 {[%clk 0:12:53]}  Bf8 {[%clk 0:13:16]} 12. h3 {[%clk 0:11:58]}  b5 {[%clk 0:11:50]} 13. Bc2 {[%clk 0:11:32]}  Bb7 {[%clk 0:09:34]} 14. Re1 {[%clk 0:11:32]}  g6 {[%clk 0:09:27]} 15. a4 {[%clk 0:10:20]}  Bg7 {[%clk 0:08:28]} 16. b4 {[%clk 0:10:20]}  Nh5 {[%clk 0:08:28]} 17. Bb3 {[%clk 0:10:20]}  Qd7 {[%clk 0:08:04]} 18. Bh2 {[%clk 0:09:34]}  Kh7 {[%clk 0:07:18]} 19. Nf1 {[%clk 0:08:40]}  Nd8 {[%clk 0:05:38]} 20. Ne3 {[%clk 0:08:40]}  Ne6 {[%clk 0:05:38]} 21. Nd5 {[%clk 0:08:40]}  Rad8 {[%clk 0:05:43]} 22. axb5 {[%clk 0:07:22]}  axb5 {[%clk 0:05:43]} 23. Ra7 {[%clk 0:07:22]}  c6 {[%clk 0:05:14]} 24. g4 {[%clk 0:07:24]}  cxd5 {[%clk 0:04:46]} 25. gxh5 {[%clk 0:04:34]}  dxe4 {[%clk 0:03:38]} 26. hxg6+ {[%clk 0:04:34]}  fxg6 {[%clk 0:03:38]} 27. dxe4 {[%clk 0:04:09]}  Qc8 {[%clk 0:03:37]} 28. Bd5 {[%clk 0:03:17]}  Bxd5 {[%clk 0:02:55]} 29. exd5 {[%clk 0:03:17]}  Nf8 {[%clk 0:02:55]} 30. Qd3 {[%clk 0:02:57]}  Rd7 {[%clk 0:02:55]} 31. Rxd7 {[%clk 0:02:57]}  Nxd7 {[%clk 0:02:55]} 32. Nh4 {[%clk 0:02:13]}  Nf8 {[%clk 0:02:25]} 33. Re4 {[%clk 0:02:13]}  Bf6 {[%clk 0:02:25]} 34. Qxb5 {[%clk 0:02:01]}  Re7 {[%clk 0:02:09]} 35. Qd3 {[%clk 0:02:01]}  Rc7 {[%clk 0:02:09]} 36. c4 {[%clk 0:01:45]}  Bxh4 {[%clk 0:01:22]} 37. Rxh4 {[%clk 0:01:45]}  Qf5 {[%clk 0:01:22]} 38. Qe3 {[%clk 0:01:27]}  Qb1+ {[%clk 0:01:04]} 39. Kg2 {[%clk 0:01:27]}  g5 {[%clk 0:01:04]} 40. Qe4+ {[%clk 0:01:27]}  Qxe4+ {[%clk 0:01:04]} 41. Rxe4 {[%clk 0:01:27]}  Nd7 {[%clk 0:00:48]} 42. c5 {[%clk 0:01:14]}  dxc5 {[%clk 0:00:48]} 43. Bxe5 {[%clk 0:00:16]}  Nxe5 {[%clk 0:00:56]} 44. d6 {[%clk 0:00:16]}  Rc8 {[%clk 0:00:56]} 45. Rxe5 {[%clk 0:00:16]}  cxb4 {[%clk 0:00:56]} 46. Rb5 {[%clk 0:00:16]}  Rd8 {[%clk 0:00:32]} 47. Rb6 {[%clk 0:00:00]}  b3 {[%clk 0:00:32]} 48. Kf3 {[%clk 0:00:00]}  b2 {[%clk 0:00:32]} 49. Rxb2 {[%clk 0:00:00]}  Rxd6 {[%clk 0:00:32]} 50. Ke4 {[%clk 0:00:00]} 1/2-1/2


[Site "http://www.Chess.com"]

[Event "FIDE World Rapid Chess Championship 2021"]
[White "Demchenko, Anton"]
[Black "Klekowski, Maciej"]
[WhiteFideId "4160258"]
[BlackFideId "1132717"]
[WhiteElo "2666"]
[BlackElo "2528"]
[Result "1-0"]
[Round "03"]
[TimeControl "900+10"]
[Date "2021.12.26"]
[WhiteClock "0:00:43"]
[BlackClock "0:00:07"]

1. e4 {[%clk 0:15:00]}  c5 {[%clk 0:15:27]} 2. Nf3 {[%clk 0:15:35]}  Nc6 {[%clk 0:15:27]} 3. Bb5 {[%clk 0:15:35]}  g6 {[%clk 0:15:27]} 4. O-O {[%clk 0:15:35]}  Bg7 {[%clk 0:15:27]} 5. d3 {[%clk 0:15:35]}  e5 {[%clk 0:15:27]} 6. a3 {[%clk 0:15:35]}  Nge7 {[%clk 0:15:47]} 7. b4 {[%clk 0:15:57]}  b6 {[%clk 0:15:47]} 8. bxc5 {[%clk 0:16:05]}  bxc5 {[%clk 0:14:31]} 9. Bg5 {[%clk 0:16:05]}  Qa5 {[%clk 0:14:40]} 10. Bxc6 {[%clk 0:15:03]}  Nxc6 {[%clk 0:11:37]} 11. Nfd2 {[%clk 0:12:56]}  h6 {[%clk 0:11:46]} 12. Nc4 {[%clk 0:12:31]}  Qc7 {[%clk 0:11:46]} 13. Be3 {[%clk 0:12:03]}  Nd4 {[%clk 0:10:43]} 14. Nc3 {[%clk 0:11:18]}  O-O {[%clk 0:06:02]} 15. Qd2 {[%clk 0:10:18]}  Kh7 {[%clk 0:05:57]} 16. f4 {[%clk 0:10:18]}  d6 {[%clk 0:04:16]} 17. Bxd4 {[%clk 0:09:11]}  cxd4 {[%clk 0:04:16]} 18. Nb5 {[%clk 0:09:11]}  Qc6 {[%clk 0:04:16]} 19. Nbxd6 {[%clk 0:09:11]}  exf4 {[%clk 0:04:16]} 20. Nxc8 {[%clk 0:09:11]}  Raxc8 {[%clk 0:04:16]} 21. Rxf4 {[%clk 0:09:11]}  Qe6 {[%clk 0:04:45]} 22. Raf1 {[%clk 0:08:44]}  Rc7 {[%clk 0:03:59]} 23. Qa5 {[%clk 0:08:43]}  Rd7 {[%clk 0:03:44]} 24. g3 {[%clk 0:06:58]}  Rc8 {[%clk 0:03:44]} 25. Qd2 {[%clk 0:06:37]}  Rb8 {[%clk 0:02:45]} 26. Kg2 {[%clk 0:05:07]}  h5 {[%clk 0:00:53]} 27. R4f2 {[%clk 0:05:07]}  Rb5 {[%clk 0:00:54]} 28. h3 {[%clk 0:04:14]}  Rc5 {[%clk 0:00:54]} 29. Qe2 {[%clk 0:04:14]}  Rb7 {[%clk 0:00:54]} 30. Qf3 {[%clk 0:04:12]}  Kg8 {[%clk 0:00:21]} 31. Re2 {[%clk 0:04:12]}  Rbc7 {[%clk 0:00:21]} 32. Rb1 {[%clk 0:04:12]}  Be5 {[%clk 0:00:08]} 33. Rb4 {[%clk 0:03:23]}  Kg7 {[%clk 0:00:08]} 34. Qf2 {[%clk 0:03:23]}  Rxc4 {[%clk 0:00:08]} 35. Rxc4 {[%clk 0:03:23]}  Rxc4 {[%clk 0:00:08]} 36. dxc4 {[%clk 0:03:23]}  Qxc4 {[%clk 0:00:08]} 37. Qf3 {[%clk 0:03:23]}  a5 {[%clk 0:00:08]} 38. Qd3 {[%clk 0:03:25]}  Qc6 {[%clk 0:00:25]} 39. Re1 {[%clk 0:03:25]}  h4 {[%clk 0:00:46]} 40. gxh4 {[%clk 0:01:26]}  Qf6 {[%clk 0:00:46]} 41. Rf1 {[%clk 0:01:26]}  Qxh4 {[%clk 0:00:46]} 42. Qf3 {[%clk 0:01:26]}  Qe7 {[%clk 0:00:46]} 43. a4 {[%clk 0:01:26]}  Qg5+ {[%clk 0:00:46]} 44. Kh1 {[%clk 0:01:26]}  Qe7 {[%clk 0:00:24]} 45. Rf2 {[%clk 0:01:38]}  Qc7 {[%clk 0:00:24]} 46. Kg2 {[%clk 0:01:38]}  Qe7 {[%clk 0:00:24]} 47. h4 {[%clk 0:01:38]}  Kh6 {[%clk 0:00:24]} 48. Qxf7 {[%clk 0:01:38]}  Qxh4 {[%clk 0:00:24]} 49. Qf8+ {[%clk 0:01:38]}  Kh5 {[%clk 0:00:24]} 50. Qf3+ {[%clk 0:01:38]}  Kg5 {[%clk 0:00:24]} 51. Kf1 {[%clk 0:01:38]}  Kh6 {[%clk 0:00:26]} 52. Ke2 {[%clk 0:01:46]}  Bd6 {[%clk 0:00:26]} 53. Kd3 {[%clk 0:01:46]}  Qe7 {[%clk 0:00:00]} 54. Qf6 {[%clk 0:01:42]}  Qc7 {[%clk 0:00:00]} 55. Qh8+ {[%clk 0:01:42]}  Kg5 {[%clk 0:00:00]} 56. Rg2+ {[%clk 0:01:42]}  Bg3 {[%clk 0:00:00]} 57. Qxd4 {[%clk 0:01:42]}  Kh4 {[%clk 0:00:00]} 58. e5+ {[%clk 0:01:42]}  Kh3 {[%clk 0:00:00]} 59. Re2 {[%clk 0:01:42]}  g5 {[%clk 0:00:12]} 60. e6 {[%clk 0:01:41]}  Qe7 {[%clk 0:00:12]} 61. c3 {[%clk 0:01:41]}  g4 {[%clk 0:00:03]} 62. Qd5 {[%clk 0:01:15]}  Kh4 {[%clk 0:00:03]} 63. Qd7 {[%clk 0:01:15]}  Qf6 {[%clk 0:00:03]} 64. Qf7 {[%clk 0:01:15]}  Qd8+ {[%clk 0:00:03]} 65. Kc2 {[%clk 0:01:15]}  Qd5 {[%clk 0:00:03]} 66. Qh7+ {[%clk 0:01:15]}  Kg5 {[%clk 0:00:03]} 67. Qg7+ {[%clk 0:01:15]}  Kh5 {[%clk 0:00:34]} 68. Kb2 {[%clk 0:00:47]}  Qc4 {[%clk 0:00:34]} 69. Qh7+ {[%clk 0:00:43]}  Kg5 {[%clk 0:00:07]} 70. Qe4 {[%clk 0:00:43]} 1-0


[Site "http://www.Chess.com"]

[Event "FIDE World Rapid Chess Championship 2021"]
[White "Murzin, Volodar"]
[Black "Smirin, Ilia"]
[WhiteFideId "44155573"]
[BlackFideId "2801990"]
[WhiteElo "2523"]
[BlackElo "2663"]
[Result "1/2-1/2"]
[Round "03"]
[TimeControl "900+10"]
[Date "2021.12.26"]
[WhiteClock "0:00:45"]
[BlackClock "0:00:56"]

1. e4 {[%clk 0:15:00]}  c5 {[%clk 0:15:25]} 2. Nf3 {[%clk 0:15:26]}  e6 {[%clk 0:15:25]} 3. g3 {[%clk 0:15:26]}  d5 {[%clk 0:15:25]} 4. exd5 {[%clk 0:15:26]}  exd5 {[%clk 0:15:25]} 5. d4 {[%clk 0:16:02]}  Nc6 {[%clk 0:15:43]} 6. Bg2 {[%clk 0:16:02]}  Nf6 {[%clk 0:15:43]} 7. O-O {[%clk 0:16:02]}  Be7 {[%clk 0:15:43]} 8. dxc5 {[%clk 0:16:02]}  Bxc5 {[%clk 0:15:43]} 9. Nc3 {[%clk 0:12:28]}  O-O {[%clk 0:15:48]} 10. Bg5 {[%clk 0:12:28]}  d4 {[%clk 0:15:44]} 11. Ne4 {[%clk 0:11:20]}  Be7 {[%clk 0:15:44]} 12. Bxf6 {[%clk 0:11:20]}  Bxf6 {[%clk 0:15:44]} 13. Ne1 {[%clk 0:11:20]}  Be7 {[%clk 0:14:17]} 14. Nd3 {[%clk 0:11:19]}  Qb6 {[%clk 0:14:17]} 15. Re1 {[%clk 0:11:16]}  Bf5 {[%clk 0:14:15]} 16. Qf3 {[%clk 0:07:34]}  Bg6 {[%clk 0:13:47]} 17. h4 {[%clk 0:05:58]}  Nb4 {[%clk 0:13:33]} 18. h5 {[%clk 0:05:10]}  Nxd3 {[%clk 0:10:59]} 19. cxd3 {[%clk 0:04:30]}  Bxe4 {[%clk 0:09:54]} 20. Qxe4 {[%clk 0:04:30]}  Bf6 {[%clk 0:10:00]} 21. Qxb7 {[%clk 0:03:49]}  Qxb7 {[%clk 0:08:30]} 22. Bxb7 {[%clk 0:03:49]}  Rab8 {[%clk 0:08:30]} 23. Bd5 {[%clk 0:01:07]}  Rxb2 {[%clk 0:08:35]} 24. Rab1 {[%clk 0:01:01]}  Rbb8 {[%clk 0:08:42]} 25. Rec1 {[%clk 0:00:51]}  Rbd8 {[%clk 0:06:44]} 26. Rb5 {[%clk 0:00:51]}  Rd7 {[%clk 0:06:44]} 27. Rc6 {[%clk 0:00:51]}  Rfd8 {[%clk 0:06:44]} 28. Bc4 {[%clk 0:00:19]}  h6 {[%clk 0:05:47]} 29. a4 {[%clk 0:00:24]}  Kf8 {[%clk 0:05:47]} 30. a5 {[%clk 0:00:24]}  Re7 {[%clk 0:05:47]} 31. a6 {[%clk 0:00:21]}  Be5 {[%clk 0:04:21]} 32. Kg2 {[%clk 0:00:21]}  Bc7 {[%clk 0:04:28]} 33. Bd5 {[%clk 0:00:14]}  Bb6 {[%clk 0:04:28]} 34. Rcxb6 {[%clk 0:00:14]}  axb6 {[%clk 0:04:28]} 35. Bb7 {[%clk 0:00:14]}  Re1 {[%clk 0:04:28]} 36. Rxb6 {[%clk 0:00:22]}  Ra1 {[%clk 0:02:53]} 37. Bc6 {[%clk 0:00:22]}  Rd6 {[%clk 0:02:34]} 38. Rb8+ {[%clk 0:00:23]}  Ke7 {[%clk 0:02:34]} 39. Rb7+ {[%clk 0:00:23]}  Kf8 {[%clk 0:02:34]} 40. Bb5 {[%clk 0:00:23]}  Rdxa6 {[%clk 0:01:19]} 41. Bxa6 {[%clk 0:00:21]}  Rxa6 {[%clk 0:01:19]} 42. Rd7 {[%clk 0:00:21]}  Ra5 {[%clk 0:01:19]} 43. g4 {[%clk 0:00:21]}  f5 {[%clk 0:01:19]} 44. f3 {[%clk 0:00:33]}  fxg4 {[%clk 0:01:23]} 45. fxg4 {[%clk 0:00:33]}  Rg5 {[%clk 0:01:23]} 46. Kh3 {[%clk 0:00:33]}  g6 {[%clk 0:01:23]} 47. hxg6 {[%clk 0:00:33]}  Rxg6 {[%clk 0:01:23]} 48. Kh4 {[%clk 0:00:33]}  Rg5 {[%clk 0:01:06]} 49. Rxd4 {[%clk 0:00:49]}  Ke7 {[%clk 0:01:06]} 50. Rf4 {[%clk 0:00:49]}  Rd5 {[%clk 0:01:06]} 51. d4 {[%clk 0:00:49]}  Ke6 {[%clk 0:00:56]} 52. Rf8 {[%clk 0:00:45]}  Rxd4 {[%clk 0:00:56]} 53. Kh5 {[%clk 0:00:45]}  Ke7 {[%clk 0:00:56]} 54. Rh8 {[%clk 0:00:45]}  Kf7 {[%clk 0:00:56]} 55. Rxh6 {[%clk 0:00:45]}  Rd5+ {[%clk 0:00:56]} 56. g5 {[%clk 0:00:45]} 1/2-1/2


[Site "http://www.Chess.com"]

[Event "FIDE World Rapid Chess Championship 2021"]
[White "Petrosyan, Manuel"]
[Black "Kovalev, Vladislav"]
[WhiteFideId "13300857"]
[BlackFideId "13504398"]
[WhiteElo "2514"]
[BlackElo "2647"]
[Result "1-0"]
[Round "03"]
[TimeControl "900+10"]
[Date "2021.12.26"]
[WhiteClock "0:00:30"]
[BlackClock "0:00:00"]

1. d4 {[%clk 0:15:00]}  Nf6 {[%clk 0:15:16]} 2. Nf3 {[%clk 0:15:01]}  e6 {[%clk 0:15:16]} 3. c4 {[%clk 0:15:01]}  Bb4+ {[%clk 0:15:16]} 4. Bd2 {[%clk 0:15:01]}  Bxd2+ {[%clk 0:15:16]} 5. Qxd2 {[%clk 0:15:01]}  b6 {[%clk 0:15:16]} 6. g3 {[%clk 0:15:00]}  Bb7 {[%clk 0:15:10]} 7. Bg2 {[%clk 0:15:00]}  O-O {[%clk 0:15:10]} 8. O-O {[%clk 0:15:00]}  d6 {[%clk 0:15:10]} 9. Nc3 {[%clk 0:15:00]}  Ne4 {[%clk 0:15:10]} 10. Nxe4 {[%clk 0:14:40]}  Bxe4 {[%clk 0:15:10]} 11. Qf4 {[%clk 0:14:48]}  f5 {[%clk 0:15:10]} 12. Rfd1 {[%clk 0:13:43]}  Qe7 {[%clk 0:13:35]} 13. c5 {[%clk 0:11:45]}  Nd7 {[%clk 0:11:46]} 14. cxd6 {[%clk 0:11:45]}  cxd6 {[%clk 0:11:46]} 15. Rac1 {[%clk 0:11:45]}  Nf6 {[%clk 0:11:46]} 16. Qe3 {[%clk 0:11:45]}  Rac8 {[%clk 0:11:17]} 17. Qa3 {[%clk 0:10:14]}  Rc7 {[%clk 0:08:34]} 18. Ng5 {[%clk 0:06:54]}  Bxg2 {[%clk 0:04:10]} 19. Kxg2 {[%clk 0:06:00]}  Rfc8 {[%clk 0:04:10]} 20. Rxc7 {[%clk 0:04:22]}  Rxc7 {[%clk 0:03:17]} 21. Qe3 {[%clk 0:04:22]}  Nd5 {[%clk 0:03:17]} 22. Qd2 {[%clk 0:04:22]}  h6 {[%clk 0:03:17]} 23. Nf3 {[%clk 0:04:22]}  Qe8 {[%clk 0:03:17]} 24. Rc1 {[%clk 0:04:22]}  Qc8 {[%clk 0:03:04]} 25. Rxc7 {[%clk 0:04:21]}  Qxc7 {[%clk 0:03:04]} 26. Qd3 {[%clk 0:04:21]}  Kf7 {[%clk 0:03:04]} 27. e4 {[%clk 0:03:35]}  fxe4 {[%clk 0:03:04]} 28. Qxe4 {[%clk 0:03:35]}  Qc6 {[%clk 0:00:36]} 29. h4 {[%clk 0:03:41]}  Ne7 {[%clk 0:00:36]} 30. Qxc6 {[%clk 0:03:41]}  Nxc6 {[%clk 0:00:36]} 31. Kf1 {[%clk 0:03:41]}  Kf6 {[%clk 0:00:36]} 32. Ke2 {[%clk 0:02:06]}  Kf5 {[%clk 0:00:36]} 33. Ke3 {[%clk 0:02:06]}  Nb4 {[%clk 0:00:36]} 34. a3 {[%clk 0:01:55]}  Nd5+ {[%clk 0:00:03]} 35. Kd3 {[%clk 0:01:55]}  Kg4 {[%clk 0:00:03]} 36. Nd2 {[%clk 0:01:55]}  Nf6 {[%clk 0:00:03]} 37. Ke2 {[%clk 0:01:55]}  d5 {[%clk 0:00:03]} 38. Nf3 {[%clk 0:01:33]}  Kh3 {[%clk 0:00:00]} 39. Ne5 {[%clk 0:01:33]}  Kg2 {[%clk 0:00:00]} 40. Ng6 {[%clk 0:01:33]}  Ne4 {[%clk 0:00:00]} 41. Nf4+ {[%clk 0:01:07]}  Kg1 {[%clk 0:00:00]} 42. Nxe6 {[%clk 0:01:07]}  Nxf2 {[%clk 0:00:00]} 43. Nxg7 {[%clk 0:01:07]}  Kg2 {[%clk 0:00:00]} 44. Nf5 {[%clk 0:01:07]}  Ng4 {[%clk 0:00:00]} 45. h5 {[%clk 0:01:07]}  Nf6 {[%clk 0:00:00]} 46. Ke3 {[%clk 0:01:07]}  Nxh5 {[%clk 0:00:00]} 47. g4 {[%clk 0:00:30]}  Ng7 {[%clk 0:00:00]} 48. Nxg7 {[%clk 0:00:30]} 1-0


[Site "http://www.Chess.com"]

[Event "FIDE World Rapid Chess Championship 2021"]
[White "Faizrakhmanov, Ramil"]
[Black "Sjugirov, Sanan"]
[WhiteFideId "24103209"]
[BlackFideId "4189302"]
[WhiteElo "2461"]
[BlackElo "2634"]
[Result "1/2-1/2"]
[Round "03"]
[TimeControl "900+10"]
[Date "2021.12.26"]
[WhiteClock "0:01:25"]
[BlackClock "0:00:17"]

1. d4 {[%clk 0:15:00]}  d5 {[%clk 0:15:27]} 2. c4 {[%clk 0:15:26]}  e6 {[%clk 0:15:27]} 3. Nf3 {[%clk 0:15:26]}  Nf6 {[%clk 0:15:27]} 4. Nc3 {[%clk 0:15:26]}  Nbd7 {[%clk 0:15:27]} 5. Bf4 {[%clk 0:15:40]}  Bb4 {[%clk 0:15:40]} 6. e3 {[%clk 0:15:40]}  Ne4 {[%clk 0:15:40]} 7. Qc2 {[%clk 0:15:40]}  g5 {[%clk 0:15:43]} 8. Be5 {[%clk 0:15:00]}  Rg8 {[%clk 0:12:50]} 9. Bd3 {[%clk 0:14:40]}  f5 {[%clk 0:12:50]} 10. cxd5 {[%clk 0:14:13]}  exd5 {[%clk 0:04:07]} 11. a3 {[%clk 0:14:13]}  Bxc3+ {[%clk 0:04:14]} 12. bxc3 {[%clk 0:11:37]}  g4 {[%clk 0:04:14]} 13. Nd2 {[%clk 0:11:44]}  Nxe5 {[%clk 0:04:05]} 14. dxe5 {[%clk 0:11:44]}  Qe7 {[%clk 0:04:05]} 15. O-O {[%clk 0:08:07]}  Qxe5 {[%clk 0:03:14]} 16. c4 {[%clk 0:08:07]}  Nxd2 {[%clk 0:03:14]} 17. Qxd2 {[%clk 0:08:07]}  Be6 {[%clk 0:03:14]} 18. Qa5 {[%clk 0:06:38]}  b6 {[%clk 0:03:06]} 19. Qb5+ {[%clk 0:05:30]}  Kf7 {[%clk 0:03:06]} 20. cxd5 {[%clk 0:05:30]}  Qxd5 {[%clk 0:03:06]} 21. Qxd5 {[%clk 0:04:24]}  Bxd5 {[%clk 0:02:37]} 22. Bxf5 {[%clk 0:04:24]}  h5 {[%clk 0:02:37]} 23. e4 {[%clk 0:04:24]}  Be6 {[%clk 0:02:37]} 24. f3 {[%clk 0:04:30]}  gxf3 {[%clk 0:02:30]} 25. Rxf3 {[%clk 0:04:30]}  Ke7 {[%clk 0:02:30]} 26. Bxe6 {[%clk 0:04:30]}  Kxe6 {[%clk 0:02:30]} 27. Raf1 {[%clk 0:04:30]}  Rg5 {[%clk 0:02:08]} 28. Rf6+ {[%clk 0:04:37]}  Ke5 {[%clk 0:01:01]} 29. Rc6 {[%clk 0:04:37]}  Rag8 {[%clk 0:01:10]} 30. g3 {[%clk 0:03:11]}  R8g7 {[%clk 0:01:10]} 31. Rfc1 {[%clk 0:02:46]}  h4 {[%clk 0:01:13]} 32. Rxc7 {[%clk 0:02:46]}  hxg3 {[%clk 0:01:13]} 33. Rxg7 {[%clk 0:02:46]}  gxh2+ {[%clk 0:01:13]} 34. Kxh2 {[%clk 0:02:46]}  Rxg7 {[%clk 0:01:13]} 35. Rc4 {[%clk 0:02:46]}  Rd7 {[%clk 0:01:13]} 36. Ra4 {[%clk 0:02:28]}  a5 {[%clk 0:00:52]} 37. Kg3 {[%clk 0:01:35]}  Rd3+ {[%clk 0:00:52]} 38. Kf2 {[%clk 0:01:35]}  Rd4 {[%clk 0:00:52]} 39. Rxd4 {[%clk 0:01:35]}  Kxd4 {[%clk 0:00:52]} 40. Kf3 {[%clk 0:01:35]}  b5 {[%clk 0:00:52]} 41. Kf4 {[%clk 0:01:24]}  b4 {[%clk 0:00:34]} 42. axb4 {[%clk 0:01:24]}  a4 {[%clk 0:00:34]} 43. e5 {[%clk 0:01:25]}  Kd5 {[%clk 0:00:17]} 44. b5 {[%clk 0:01:25]}  a3 {[%clk 0:00:17]} 45. b6 {[%clk 0:01:25]}  Kc6 {[%clk 0:00:17]} 46. e6 {[%clk 0:01:25]}  a2 {[%clk 0:00:17]} 47. e7 {[%clk 0:01:25]}  Kd7 {[%clk 0:00:17]} 48. b7 {[%clk 0:01:25]}  Kxe7 {[%clk 0:00:17]} 49. Ke4 {[%clk 0:01:25]} 1/2-1/2


[Site "http://www.Chess.com"]